Cogmind - Beta 9.6 @@@ ROGUE MODE // 2020.09.12 @ 20:29:49 // Winter2019/RPGLIKE Player: Klokwurk Result: Destroyed by S-10 Pest with Light Assault Rifle Performance ------------- Evolutions (1) 500 Regions Visited (2) 400 Robots Destroyed (23) 115 Value Destroyed (493) 493 Prototype IDs (0) 0 Alien Tech Used (0) 0 Bonus (0) 0 TOTAL SCORE: 1508 Bonus ------- None Cogmind --------- Core Integrity 0/800 Matter 350/350 Energy 200/200 System Corruption 0% Temperature Cool (0) Movement Treading (160) Location -9/Materials Parts ------- > --- POWER (2) -------- Light Ion Engine Light Ion Engine > --- PROPULSION (2) --- Light Treads Light Treads > --- UTILITY (2) ------ Signal Interpreter Advanced Targeting Computer > --- WEAPON (2) ------- Electrolaser Particle Cannon > --- INVENTORY (2) ---- Flail Peak State ------------ > --- POWER ------------ Light Ion Engine Light Ion Engine > --- PROPULSION ------- Light Treads Light Treads > --- UTILITY ---------- Signal Interpreter Advanced Targeting Computer > --- WEAPON ----------- Electrolaser Particle Cannon > --- INVENTORY -------- Light Assault Rifle [Rating: 13] Favorites ----------- Power Light Ion Engine Engine Light Ion Engine Propulsion Light Treads Treads Light Treads Utility Signal Interpreter Device Sensor Array Processor Signal Interpreter Weapon Particle Cannon Energy Gun Electrolaser Energy Cannon Particle Cannon Ballistic Gun Light Assault Rifle Build | -11 -10 -9 ------- Run | Scr Mat Mat Slots Evolved 4 | 4 . . Power 1 | 1 . . Propulsion 1 | 1 . . Utility 1 | 1 . . Weapon 1 | 1 . . Parts Attached 13 | 6 4 3 Power 2 | 1 1 . Engine 2 | 1 1 . Core . | . . . Reactor . | . . . Propulsion 3 | 2 . 1 Treads 3 | 2 . 1 Leg . | . . . Wheel . | . . . Hover . | . . . Flight . | . . . Utility 3 | . 2 1 Device 1 | . 1 . Storage . | . . . Processor 2 | . 1 1 Hackware . | . . . Protection . | . . . Artifact . | . . . Weapon 5 | 3 1 1 Energy Gun 2 | 1 . 1 Energy Cannon 1 | . 1 . Ballistic Gun 2 | 2 . . Ballistic Cannon . | . . . Launcher . | . . . Special Weapon . | . . . Impact Weapon . | . . . Slashing Weapon . | . . . Piercing Weapon . | . . . Special Melee Weapon . | . . . Unidentified Prototypes . | . . . Parts Lost . | . . . Power . | . . . Propulsion . | . . . Utility . | . . . Weapon . | . . . Highest Loss Streak . | . . . Average Slot Usage (%) 96 | . 93 99 Engine 23 | . 22 25 Treads 25 | . 25 25 Device 6 | . 10 . Processor 16 | . 10 23 Energy Gun 4 | . . 10 Energy Cannon 10 | . 9 12 Ballistic Gun 8 | . 14 1 Naked Turns . | . . . Heaviest Build 13 | 5 12 13 Greatest Support 50 | 45 45 50 Greatest Overweight (x) . | . . . Average Overweight (x) . | . . . Largest Inventory Capacity 2 | 1 1 2 Average Capacity 1 | . 1 1 Most Carried 1 | 1 1 1 Average Carried . | . . . Final Capacity 2 | 1 1 2 Final Carried 1 | . . 1 Class Distribution -------------------- 100% | Mutant Dominant Class ---------------- Mutant | -10/Materials Mutant | -9/Materials Resources | -11 -10 -9 ----------- Run | Scr Mat Mat Matter Collected 425 | 286 104 35 Remotely . | . . . Salvage Created 639 | . 190 449 Parts 51 | . 21 30 Haulers Intercepted 2 | . . 2 Recyclers Shooed . | . . . Parts Field Recycled . | . . . Retrieved Matter . | . . . Parts Self-Destructed . | . . . Prevented . | . . . Kills | -11 -10 -9 ------- Run | Scr Mat Mat Combat Hostiles Destroyed 13 | . 7 6 Guns 7 | . 5 2 Cannons 6 | . 2 4 Classes Destroyed 7 | . 4 3 Worker 1 | . . 1 Hauler 2 | . . 2 Operator 1 | . 1 . Watcher 6 | . 2 4 Swarmer 5 | . 3 2 Grunt 7 | . 4 3 Sentry 1 | . . 1 Best Kill Streak 6 | . 4 6 Combat Bots Only 3 | . 3 2 Max Kills in Single Turn 2 | . 2 2 Gunslinging 1 | . 1 . Exploded . | . . . Melee . | . . . Uniques/NPCs Destroyed . | . . . Combat | -11 -10 -9 -------- Run | Scr Mat Mat Damage Taken 1364 | . 557 807 Core 1083 | . 444 639 Absorbed by Shields . | . . . Redirected to Core 873 | . 363 510 Core Remaining (%) 87 | 100 75 . Volleys Fired 65 | . 37 28 Largest 2 | . 2 2 Hottest 131 | . 88 131 Shots Fired 127 | . 74 53 Gun 70 | . 45 25 Cannon 57 | . 29 28 Launcher . | . . . Special . | . . . Kinetic 45 | . 45 . Thermal 82 | . 29 53 Explosive . | . . . Electromagnetic . | . . . Robot Hit Streak 6 | . 6 5 Robot Miss Streak 3 | . 3 2 Penetration Max . | . . . Secondary Targets 3 | . 3 . Max Gunslinging Chain 1 | . 1 . Shots Hit Robots 77 | . 46 31 Core Hits 33 | . 19 14 Critical Hits . | . . . Critical Kills . | . . . Critical Parts Destroyed . | . . . Melee Attacks . | . . . Impact . | . . . Slashing . | . . . Piercing . | . . . Sneak Attacks . | . . . Combat Hostiles . | . . . Follow-up Attacks . | . . . Damage Inflicted 1338 | . 619 719 Guns 454 | . 231 223 Cannons 884 | . 388 496 Explosions . | . . . Melee . | . . . Ramming . | . . . Kinetic 231 | . 231 . Thermal 1107 | . 388 719 Explosive . | . . . Electromagnetic . | . . . Impact . | . . . Slashing . | . . . Piercing . | . . . Highest Corruption 3 | . 3 . Average Corruption 2 | . 2 . Corruption Purged . | . . . Effects 2 | . 2 . Energy Discharges 1 | . 1 . Targeting Errors 1 | . 1 . Overload Shots . | . . . Overflow Damage 12 | . 10 2 Projectiles 12 | . 10 2 Explosions . | . . . Melee . | . . . Knockbacks . | . . . Impact . | . . . Kinetic . | . . . Secondary . | . . . Self-Inflicted Damage . | . . . Shots . | . . . Rammed . | . . . Targets Rammed . | . . . Kicked . | . . . Crushed . | . . . Highest Temperature 328 | . 328 1 Average Temperature 109 | . 110 1 Received Heat Transfer 291 | . 234 57 Siege Activations . | . . . Robots Corrupted . | . . . Combat Hostiles . | . . . Parts Fried . | . . . Impact Corruptions . | . . . Robots Melted . | . . . Combat Hostiles . | . . . Parts Melted 2 | . 1 1 Heat Transferred 2072 | . 703 1369 Parts Sabotaged . | . . . Parts Stolen . | . . . Parts Stripped . | . . . Power Chain Reactions . | . . . Missiles Intercepted . | . . . Alert | -11 -10 -9 ------- Run | Scr Mat Mat Peak Influence 242 | . 199 242 Average Influence 87 | . 87 105 Maximum Alert Level 1 | . . 1 Low Security (%) 93 | 100 100 83 Level 1 6 | . . 16 Level 2 . | . . . Level 3 . | . . . Level 4 . | . . . Level 5 . | . . . High Security . | . . . Max Security . | . . . Squads Dispatched 3 | . 2 1 Investigation 1 | . 1 . Extermination . | . . . Reinforcement 2 | . 1 1 Assault . | . . . Garrison . | . . . Intercept . | . . . Construction Impeded . | . . . Haulers Reinforced . | . . . Stealth | -11 -10 -9 --------- Run | Scr Mat Mat Distress Signals 1 | . 1 . Communications Jammed . | . . . Distress Signals . | . . . Times Spotted 34 | . 17 17 Peak Tracking Total 7 | . 4 7 Tactical Retreats 1 | . 1 . Traps | -11 -10 -9 ------- Run | Scr Mat Mat Traps Triggered 3 | . 3 . Indirectly . | . . . Trap Hack Attempts . | . . . Triggered . | . . . Disarmed . | . . . Reprogrammed . | . . . Reused . | . . . Traps Extracted . | . . . Installed . | . . . Triggered . | . . . Machines | -11 -10 -9 ---------- Run | Scr Mat Mat Machines Disabled 4 | . 3 1 Max in Single Turn 1 | . 1 1 Machines Sabotaged . | . . . Garrisons Compromised . | . . . Overloaded Fab Kills . | . . . Fab Network Shutdowns . | . . . Hacking | -11 -10 -9 --------- Run | Scr Mat Mat Machines Accessed 1 | . . 1 Terminals . | . . . Fabricators . | . . . Repair Stations . | . . . Recycling Units 1 | . . 1 Scanalyzers . | . . . Garrison Access . | . . . Total Hacks 1 | . . 1 Successful 1 | . . 1 Failed . | . . . Catastrophic . | . . . Database Lockouts . | . . . Manual . | . . . Terminals . | . . . Fabricators . | . . . Repair Stations . | . . . Recycling Units 1 | . . 1 Scanalyzers . | . . . Garrison Access . | . . . Terminal Hacks . | . . . Fabricator Hacks . | . . . Repair Station Hacks . | . . . Recycling Unit Hacks 1 | . . 1 Report Inventory 1 | . . 1 Scanalyzer . | . . . Garrison Access Hacks . | . . . Unauthorized Hacks . | . . . Terminals . | . . . Fabricators . | . . . Repair Stations . | . . . Recycling Units . | . . . Scanalyzers . | . . . Garrison Access . | . . . Data Cores Recovered . | . . . Used . | . . . Hacking Detections . | . . . Full Trace Events . | . . . Feedback Events . | . . . Feedback Blocked . | . . . Robot Schematics Acquired . | . . . Robots Built . | . . . Matter . | . . . Time . | . . . Total Robot Build Rating . | . . . Part Schematics Acquired . | . . . Parts Built . | . . . Matter . | . . . Time . | . . . Total Part Build Rating . | . . . Parts Repaired . | . . . Time . | . . . Parts Recycled . | . . . Recycled Matter . | . . . Retrieved Matter . | . . . Retrieved Components . | . . . Parts Scanalyzed . | . . . Part Schematics Acquired . | . . . Parts Damaged . | . . . Bothacking | -11 -10 -9 ------------ Run | Scr Mat Mat Used RIF Installer . | . . . Robots Hacked . | . . . Non-combat . | . . . Combat . | . . . Robot Hacks Applied . | . . . Relay Couplers Released . | . . . Robots Rewired . | . . . Allies Hacked . | . . . Hacks Repelled . | . . . Allies | -11 -10 -9 -------- Run | Scr Mat Mat Total Allies . | . . . Largest Group . | . . . Highest-Rated Group . | . . . Highest-Rated Ally . | . . . Total Orders . | . . . Ally Attacks . | . . . Total Damage . | . . . Kills . | . . . Allies Corrupted . | . . . Allies Melted . | . . . Intel | -11 -10 -9 ------- Run | Scr Mat Mat Robot Analysis Total . | . . . Derelict Logs Recovered . | . . . Drone Launches . | . . . Drone Recoveries . | . . . Exploration | -11 -10 -9 ------------- Run | Scr Mat Mat Turns Passed 898 | 74 471 353 Spaces Moved 423 | 43 216 164 Core 4 | 4 . . Treads 419 | 39 216 164 Legs . | . . . Wheels . | . . . Hover . | . . . Flight . | . . . Fastest Speed 50 | 50 160 160 Average Speed 158 | 149 160 160 Slowest Speed 160 | 160 160 160 Overloaded Moves . | . . . Propulsion Burnouts . | . . . Robots Hopped . | . . . Cave-ins Triggered . | . . . Exploration Rate (%) 25 | 4 56 16 Regions Visited 2 Branch Regions . Pre-discovered Areas . | . . . Known Exits Taken 1 | . 1 . Unknown Exits Taken 1 | 1 . . Scrap Searched . | . . . Spaces Dug . | . . . Terrain Destroyed 13 | . 13 . Melee . | . . . Projectile . | . . . AOE 13 | . 13 . Actions | -11 -10 -9 --------- Run | Scr Mat Mat Total 530 | 51 277 202 Wait 3 | . 3 . Move 421 | 42 215 164 Hop . | . . . Pick Up 10 | 2 4 4 Fast Attach 5 | 4 1 . Attach 5 | 2 2 1 Detach . | . . . Swap 3 | . 1 2 Drop 6 | 1 2 3 Fire 65 | . 37 28 Melee . | . . . Ram . | . . . Kick . | . . . Crush . | . . . Escape Stasis . | . . . Rewire . | . . . Trap . | . . . Miscellaneous 12 | . 12 . Route ------- -11/Scrapyard -10/Materials -9/Materials (discovered 1 exit: [*Min]) History --------- Turn | Location | Event 7 | -11/Scrapyard | Discovered new exit (range 16) 15 | -11/Scrapyard | Upgraded with Power slot (x1) 15 | -11/Scrapyard | Upgraded with Propulsion slot (x1) 15 | -11/Scrapyard | Upgraded with Utility slot (x1) 15 | -11/Scrapyard | Upgraded with Weapon slot (x1) 75 | -11/Scrapyard | Entered Materials 314 | -10/Materials | Build established: Mutant 354 | -10/Materials | Core integrity fell below 50% 535 | -10/Materials | Discovered new exit (range 8) 545 | -10/Materials | Identified exit to Materials 546 | -10/Materials | Entered another Materials area 548 | -9/Materials | Reached level 2 722 | -9/Materials | Reached level 3 854 | -9/Materials | Discovered new exit (range 15) 875 | -9/Materials | Core integrity fell below 50% 890 | -9/Materials | Core integrity fell below 20% 899 | -9/Materials | Destroyed by S-10 Pest with Light Assault Rifle Last Messages --------------- K-01 Serf cleans the Terminal. EXIT=FOUND Destroyed Flight Unit. K-01 Serf cleans the Terminal. S-10 Pest destroyed. K-01 Serf collects debris. C-30 ARC bursts open, deploying its payload. S-10 Pest unfolds itself. K-01 Serf collects debris. U-05 Engineer lays Concrete. K-01 Serf destroyed. Machine disabled. U-05 Engineer lays Concrete. K-01 Serf collects debris. S-10 Pest destroyed. K-01 Serf collects debris. Destroyed Flight Unit. K-01 Serf collects debris. S-10 Pest heat damages Flight Unit. K-01 Serf collects debris. Map ----- +----------------------------------------------------+ | ?????????????????????????????????????????????????? | | ?????????????????????????????????????????????????? | | ?????????????????????????????????????????????????? | | ?????????????????????????????????????????????????? | | ?????????????????????????????????????????????????# | | ????????????????????????????????????????????????? | | ????????????????????????????????????????????????? | | ????????????????????????????????????????????????? | | ?????????????????????????????????????????????????# | | ?????????????????????????????????????????????????# | | ??????????????????????? ???????????????????????# | | ??????????????????????# s #???????????????????#### | | ?????????????????????"" ???????????????????? | | ????????????????????? ????????????????????? | | ?????????????????????| u ?????????????????????? | | ?????????????????????" < ??????????????????????# | | ?????????????????????| k ??????????????????????# | | ?????????????????????? * ??????????????????????# | | ?????????????????????? !%=??????????????????????# | | ??????????????????????# % #????????????"?????????# | | ??????????????????????# #????????????""""??????# | | ??????????????????????+ s/????????????"""???????# | | ??????????????????????# = #???????????? ""???????# | | ??????????????????????#*%=#???????????? ! ???????# | | ??????????????????????# [ #???????????? ]!???????# | | ??????????????????????# @#????????????#+#???????# | | ??????????????????????# #????????????#*#???????# | | ??????????????????????# #?#####??????#%#???????# | | ??????????????#########s= ###"T"########%#??????## | | ?????????? s%=g]%%!=%! =!##?????# | | ????????????????######% s *]! % #?????# | | ?????????????????????# T =! / ####### | | ?????????????????????# /! | | ?????????????????????# ### ######## | | ?????????????????????# ##?#+#??????## | | ?????????????????????# !]! [ #????????????? | | ?????????????????????# !]! / ]?????????? | | ?????????????????????# !]! # ]!] ??????? | | ?????????????????????# #? !! ???????? | | ?????????????????????# #?? "??????? | | ?????????????????????####+####### #??? "??????? | | ????????????????????????????????# #???? ???????? | | ???????????????????????????????? +????????????? | | ????????????????????????????????# #????????????? | | ????????????????????????????????#####????????????? | | ?????????????????????????????????????????????????? | | ?????????????????????????????????????????????????? | | ?????????????????????????????????????????????????? | | ?????????????????????????????????????????????????? | | ?????????????????????????????????????????????????? | +----------------------------------------------------+ Best States ------------- Heat Dissipation 85 Energy Generation 15 Energy Capacity 200 Matter Stores 350 Matter Capacity 350 Sight Range 16 Robot Scan Range 12 Terrain Scan Density 110 Evasion (%) 40 Targeting Accuracy 8 Recoil Reduction 2 Item Schematics ----------------- None Robot Schematics ------------------ None Fabricated ------------ Nothing Alien Tech Used ----------------- None Achievements -------------- None Challenges ------------ None RPGLIKE | -11 -10 -9 --------- Run | Scr Mat Mat Levels Raised 2 | . . 2 XP Earned 6505 | 3000 1145 2360 XP Spent 5985 | 2995 . 2990 Upgrades 28 | 13 . 15 Power Slot 1 | 1 . . Propulsion Slot 1 | 1 . . Utility Slot 1 | 1 . . Weapon Slot 1 | 1 . . Core Integrity 4 | 1 . 3 Heat Dissipation 10 | 2 . 8 Energy Storage 1 | 1 . . Matter Storage 1 | 1 . . Mass Support 2 | 1 . 1 Inventory Capacity 2 | 1 . 1 Sensor Range 2 | 1 . 1 Terrain Scan Density 1 | 1 . . Ranged Accuracy 1 | . . 1 Protomatter Created 121 | . 102 19 Integrity Restored 282 | . 282 . Core 282 | . 282 . Protomatter Decayed 8 | . 8 . Game ------ Seed AlertFlakBoomstick Manual? 0 Play Time 00:17:49 Cumulative 15.3 hours Start 2020.09.12 @ 20:14:24 End 2020.09.12 @ 20:29:49 Sessions 1 Manual Loads 0 Difficulty Rogue Special Mode Winter2019/RPGLIKE Game No. 27 Rogue 27 Adventurer 0 Explorer 0 Win Type - Total 0 Types 0/0/0/0/0/0/0 Lore% 17 Gallery% 35 Achievement% 23 Wizard Run 0 Options --------- ASCII 0 Keyboard 0 Movement Mouse Keybinds 0 Fullscreen 2 Font 16/SmallcapsGlow Map View 50x54 Tactical HUD 0 Map Filters NONE Filters NONE Steam 1 RUN: fb5c4772-7cb6-447c-a8a4-92bb4d9b8c24